[Event "Titled Tuesday Blitz July 18 Late 2023"]
[White "Floresvillar Gonzalez, Luis Migu"]
[Black "Mikhalsky, Vladimir"]
[WhiteFideId "5100542"]
[BlackFideId "14144352"]
[WhiteElo "2070"]
[BlackElo "2416"]
[Result "1/2-1/2"]
[Round "2"]
[TimeControl "180+2"]
[Date "2023.07.18"]
[WhiteClock "0:00:56"]
[BlackClock "0:00:04"]
[Board "192"]

1. e4 {[%clk 0:03:00]}  g6 {[%clk 0:01:04]} 2. d4 {[%clk 0:02:59]}  Bg7 {[%clk 0:01:04]} 3. c3 {[%clk 0:02:59]}  d6 {[%clk 0:01:03]} 4. Bd3 {[%clk 0:02:59]}  Nf6 {[%clk 0:01:02]} 5. f4 {[%clk 0:02:58]}  O-O {[%clk 0:01:02]} 6. e5 {[%clk 0:02:57]}  Nfd7 {[%clk 0:01:01]} 7. Nf3 {[%clk 0:02:57]}  c5 {[%clk 0:01:01]} 8. Be3 {[%clk 0:02:55]}  cxd4 {[%clk 0:01:01]} 9. Bxd4 {[%clk 0:02:44]}  Nc6 {[%clk 0:01:00]} 10. exd6 {[%clk 0:02:42]}  Nxd4 {[%clk 0:00:58]} 11. Nxd4 {[%clk 0:02:38]}  e5 {[%clk 0:00:36]} 12. fxe5 {[%clk 0:02:34]}  Nxe5 {[%clk 0:00:36]} 13. O-O {[%clk 0:02:34]}  Qxd6 {[%clk 0:00:35]} 14. Be2 {[%clk 0:02:32]}  Nc6 {[%clk 0:00:23]} 15. Nxc6 {[%clk 0:02:29]}  Qxc6 {[%clk 0:00:23]} 16. Qd2 {[%clk 0:02:05]}  Qb6+ {[%clk 0:00:23]} 17. Kh1 {[%clk 0:02:03]}  Bf5 {[%clk 0:00:22]} 18. Na3 {[%clk 0:02:02]}  Rad8 {[%clk 0:00:22]} 19. Qc1 {[%clk 0:01:56]}  Rfe8 {[%clk 0:00:21]} 20. Bf3 {[%clk 0:01:49]}  Qc7 {[%clk 0:00:20]} 21. Nb5 {[%clk 0:01:45]}  Qc5 {[%clk 0:00:20]} 22. Nd4 {[%clk 0:01:44]}  Bxd4 {[%clk 0:00:17]} 23. cxd4 {[%clk 0:01:44]}  Qxd4 {[%clk 0:00:16]} 24. Bxb7 {[%clk 0:01:40]}  Rb8 {[%clk 0:00:14]} 25. Qc7 {[%clk 0:01:35]}  Qxb2 {[%clk 0:00:10]} 26. Bf3 {[%clk 0:01:31]}  Qb6 {[%clk 0:00:08]} 27. Qxb6 {[%clk 0:01:30]}  Rxb6 {[%clk 0:00:08]} 28. h3 {[%clk 0:01:30]}  Rb2 {[%clk 0:00:08]} 29. a4 {[%clk 0:01:29]}  Be6 {[%clk 0:00:09]} 30. a5 {[%clk 0:01:22]}  Rc8 {[%clk 0:00:09]} 31. a6 {[%clk 0:01:20]}  Rcc2 {[%clk 0:00:08]} 32. Bb7 {[%clk 0:01:19]}  h5 {[%clk 0:00:07]} 33. Rg1 {[%clk 0:01:18]}  Bxh3 {[%clk 0:00:06]} 34. Kh2 {[%clk 0:01:13]}  Be6 {[%clk 0:00:06]} 35. Rad1 {[%clk 0:01:11]}  Rb4 {[%clk 0:00:06]} 36. Rd8+ {[%clk 0:01:07]}  Kg7 {[%clk 0:00:05]} 37. Ra8 {[%clk 0:01:05]}  Rc3 {[%clk 0:00:05]} 38. g3 {[%clk 0:01:02]}  Rb2+ {[%clk 0:00:03]} 39. Rg2 {[%clk 0:01:01]}  Rb1 {[%clk 0:00:04]} 40. Rg1 {[%clk 0:00:57]}  Rb2+ {[%clk 0:00:03]} 41. Rg2 {[%clk 0:00:56]}  Rb1 {[%clk 0:00:04]} 42. Rg1 {[%clk 0:00:56]}  Rb2+ {[%clk 0:00:04]} 1/2-1/2


[Site "https://www.chess.com"]

[Event "Titled Tuesday Blitz July 18 Late 2023"]
[White "Joubert, Dantelle"]
[Black "Jonkman, Harmen"]
[WhiteFideId "14310813"]
[BlackFideId "1002708"]
[WhiteElo "2052"]
[BlackElo "2411"]
[Result "1-0"]
[Round "2"]
[TimeControl "180+2"]
[Date "2023.07.18"]
[WhiteClock "0:00:07"]
[BlackClock "0:00:00"]
[Board "196"]

1. e4 {[%clk 0:03:00]}  e5 {[%clk 0:02:55]} 2. Nf3 {[%clk 0:02:59]}  Nc6 {[%clk 0:02:54]} 3. Nc3 {[%clk 0:02:58]}  Nf6 {[%clk 0:02:49]} 4. a3 {[%clk 0:02:58]}  d5 {[%clk 0:02:46]} 5. Bb5 {[%clk 0:02:56]}  Nxe4 {[%clk 0:02:27]} 6. Nxe5 {[%clk 0:02:49]}  Nxc3 {[%clk 0:02:22]} 7. dxc3 {[%clk 0:02:45]}  Qd6 {[%clk 0:02:05]} 8. O-O {[%clk 0:02:43]}  a6 {[%clk 0:01:57]} 9. Bxc6+ {[%clk 0:02:38]}  bxc6 {[%clk 0:01:57]} 10. Bf4 {[%clk 0:02:38]}  Qf6 {[%clk 0:01:56]} 11. Re1 {[%clk 0:02:29]}  Be6 {[%clk 0:01:42]} 12. Bg3 {[%clk 0:02:20]}  Bc5 {[%clk 0:01:08]} 13. Nxc6 {[%clk 0:02:03]}  h5 {[%clk 0:00:56]} 14. Nd4 {[%clk 0:01:48]}  Bxd4 {[%clk 0:00:22]} 15. Qxd4 {[%clk 0:01:43]}  Qxd4 {[%clk 0:00:20]} 16. cxd4 {[%clk 0:01:43]}  Kd7 {[%clk 0:00:21]} 17. h3 {[%clk 0:01:18]}  h4 {[%clk 0:00:15]} 18. Bf4 {[%clk 0:01:16]}  Bf5 {[%clk 0:00:15]} 19. Re5 {[%clk 0:01:11]}  Be6 {[%clk 0:00:13]} 20. c4 {[%clk 0:01:05]}  f6 {[%clk 0:00:09]} 21. Re2 {[%clk 0:00:49]}  dxc4 {[%clk 0:00:09]} 22. Rd2 {[%clk 0:00:32]}  Bd5 {[%clk 0:00:09]} 23. Rc1 {[%clk 0:00:28]}  Rhe8 {[%clk 0:00:09]} 24. b3 {[%clk 0:00:27]}  cxb3 {[%clk 0:00:07]} 25. Rxc7+ {[%clk 0:00:27]}  Ke6 {[%clk 0:00:07]} 26. Rxg7 {[%clk 0:00:24]}  Rac8 {[%clk 0:00:07]} 27. g4 {[%clk 0:00:19]}  hxg3 {[%clk 0:00:06]} 28. fxg3 {[%clk 0:00:17]}  Rc1+ {[%clk 0:00:06]} 29. Kf2 {[%clk 0:00:17]}  Kf5 {[%clk 0:00:05]} 30. Bd6 {[%clk 0:00:14]}  Ree1 {[%clk 0:00:04]} 31. g4+ {[%clk 0:00:08]}  Ke6 {[%clk 0:00:03]} 32. Bc7 {[%clk 0:00:07]}  Rf1+ {[%clk 0:00:00]} 33. Kg3 {[%clk 0:00:07]} 1-0


[Site "https://www.chess.com"]

[Event "Titled Tuesday Blitz July 18 Late 2023"]
[White "Piekarski, Atila Balzer"]
[Black "MrAnnihilation"]
[WhiteFideId "2119552"]
[WhiteElo "2046"]
[BlackElo "2410"]
[Result "1-0"]
[Round "2"]
[TimeControl "180+2"]
[Date "2023.07.18"]
[WhiteClock "0:00:07"]
[BlackClock "0:00:00"]
[Board "197"]

1. d4 {[%clk 0:02:50]}  Nf6 {[%clk 0:02:59]} 2. c4 {[%clk 0:02:49]}  e6 {[%clk 0:02:59]} 3. Nc3 {[%clk 0:02:48]}  Bb4 {[%clk 0:03:00]} 4. e3 {[%clk 0:02:47]}  c5 {[%clk 0:02:54]} 5. Bd3 {[%clk 0:02:46]}  Bxc3+ {[%clk 0:02:54]} 6. bxc3 {[%clk 0:02:45]}  Nc6 {[%clk 0:02:55]} 7. Ne2 {[%clk 0:02:39]}  d6 {[%clk 0:02:53]} 8. g4 {[%clk 0:02:20]}  h6 {[%clk 0:02:40]} 9. Rg1 {[%clk 0:02:17]}  b6 {[%clk 0:02:25]} 10. h4 {[%clk 0:02:16]}  g5 {[%clk 0:02:16]} 11. e4 {[%clk 0:01:36]}  Nd7 {[%clk 0:01:48]} 12. Ng3 {[%clk 0:01:30]}  cxd4 {[%clk 0:01:45]} 13. Nh5 {[%clk 0:01:20]}  dxc3 {[%clk 0:01:26]} 14. hxg5 {[%clk 0:01:19]}  hxg5 {[%clk 0:01:26]} 15. Qc2 {[%clk 0:01:11]}  Nde5 {[%clk 0:01:09]} 16. Qxc3 {[%clk 0:01:09]}  Nd4 {[%clk 0:00:36]} 17. Be2 {[%clk 0:00:58]}  Nxe2 {[%clk 0:00:30]} 18. Kxe2 {[%clk 0:00:58]}  Ba6 {[%clk 0:00:30]} 19. Bb2 {[%clk 0:00:31]}  Bxc4+ {[%clk 0:00:27]} 20. Ke3 {[%clk 0:00:19]}  Rxh5 {[%clk 0:00:21]} 21. gxh5 {[%clk 0:00:18]}  Qf6 {[%clk 0:00:22]} 22. Rg3 {[%clk 0:00:17]}  Qf4+ {[%clk 0:00:22]} 23. Kd4 {[%clk 0:00:15]}  b5 {[%clk 0:00:19]} 24. Qe3 {[%clk 0:00:13]}  Nc6+ {[%clk 0:00:19]} 25. Kc3 {[%clk 0:00:14]}  Qe5+ {[%clk 0:00:18]} 26. Kc2 {[%clk 0:00:14]}  Nb4+ {[%clk 0:00:14]} 27. Kd1 {[%clk 0:00:12]}  Qxb2 {[%clk 0:00:12]} 28. Rc1 {[%clk 0:00:13]}  Nxa2 {[%clk 0:00:05]} 29. Rc2 {[%clk 0:00:12]}  Qb1+ {[%clk 0:00:02]} 30. Kd2 {[%clk 0:00:13]}  Nb4 {[%clk 0:00:01]} 31. Rxc4 {[%clk 0:00:08]}  bxc4 {[%clk 0:00:00]} 32. Qxg5 {[%clk 0:00:07]} 1-0


[Site "https://www.chess.com"]

[Event "Titled Tuesday Blitz July 18 Late 2023"]
[White "Rosenberg, Evan S"]
[Black "Curtis, John"]
[WhiteFideId "2019299"]
[BlackFideId "3200256"]
[WhiteElo "2410"]
[BlackElo "2037"]
[Result "1-0"]
[Round "2"]
[TimeControl "180+2"]
[Date "2023.07.18"]
[WhiteClock "0:00:04"]
[BlackClock "0:00:00"]
[Board "198"]

1. d4 {[%clk 0:03:00]}  Nf6 {[%clk 0:02:59]} 2. Nf3 {[%clk 0:03:01]}  d5 {[%clk 0:02:52]} 3. Bg5 {[%clk 0:02:58]}  Ne4 {[%clk 0:02:51]} 4. Bh4 {[%clk 0:02:56]}  Nd7 {[%clk 0:02:50]} 5. Nbd2 {[%clk 0:02:48]}  Ndf6 {[%clk 0:02:48]} 6. e3 {[%clk 0:02:47]}  Bg4 {[%clk 0:02:45]} 7. Be2 {[%clk 0:02:46]}  Nxd2 {[%clk 0:02:35]} 8. Qxd2 {[%clk 0:02:32]}  Ne4 {[%clk 0:02:33]} 9. Qb4 {[%clk 0:02:24]}  Qc8 {[%clk 0:02:32]} 10. O-O {[%clk 0:01:52]}  e6 {[%clk 0:02:22]} 11. Qa4+ {[%clk 0:01:40]}  c6 {[%clk 0:02:17]} 12. Rfd1 {[%clk 0:01:38]}  g5 {[%clk 0:02:09]} 13. Bg3 {[%clk 0:01:33]}  Nxg3 {[%clk 0:02:07]} 14. hxg3 {[%clk 0:01:33]}  Bxf3 {[%clk 0:01:57]} 15. gxf3 {[%clk 0:01:29]}  a6 {[%clk 0:01:49]} 16. Kg2 {[%clk 0:01:29]}  h5 {[%clk 0:01:48]} 17. Rh1 {[%clk 0:01:27]}  h4 {[%clk 0:01:45]} 18. c4 {[%clk 0:01:24]}  dxc4 {[%clk 0:01:28]} 19. Qxc4 {[%clk 0:01:23]}  Bg7 {[%clk 0:01:14]} 20. Rac1 {[%clk 0:01:23]}  Qd7 {[%clk 0:01:14]} 21. Qc5 {[%clk 0:01:21]}  Qe7 {[%clk 0:01:07]} 22. Bd3 {[%clk 0:01:13]}  Qxc5 {[%clk 0:01:06]} 23. Rxc5 {[%clk 0:01:13]}  Bf6 {[%clk 0:01:03]} 24. Be4 {[%clk 0:01:03]}  Be7 {[%clk 0:00:49]} 25. Rc4 {[%clk 0:00:59]}  Kd7 {[%clk 0:00:36]} 26. a4 {[%clk 0:00:49]}  hxg3 {[%clk 0:00:31]} 27. Rxh8 {[%clk 0:00:41]}  Rxh8 {[%clk 0:00:30]} 28. fxg3 {[%clk 0:00:42]}  f5 {[%clk 0:00:30]} 29. Bd3 {[%clk 0:00:39]}  a5 {[%clk 0:00:20]} 30. e4 {[%clk 0:00:31]}  f4 {[%clk 0:00:15]} 31. e5 {[%clk 0:00:20]}  Bb4 {[%clk 0:00:15]} 32. gxf4 {[%clk 0:00:17]}  gxf4 {[%clk 0:00:14]} 33. d5 {[%clk 0:00:18]}  Rg8+ {[%clk 0:00:14]} 34. Kf2 {[%clk 0:00:16]}  exd5 {[%clk 0:00:14]} 35. Rxf4 {[%clk 0:00:16]}  Ke6 {[%clk 0:00:13]} 36. Rf6+ {[%clk 0:00:13]}  Kxe5 {[%clk 0:00:13]} 37. Rf7 {[%clk 0:00:13]}  Kd4 {[%clk 0:00:13]} 38. Bh7 {[%clk 0:00:12]}  Rb8 {[%clk 0:00:09]} 39. f4 {[%clk 0:00:11]}  Bd6 {[%clk 0:00:09]} 40. f5 {[%clk 0:00:11]}  b5 {[%clk 0:00:08]} 41. Rd7 {[%clk 0:00:06]}  bxa4 {[%clk 0:00:07]} 42. Rxd6 {[%clk 0:00:06]}  Rxb2+ {[%clk 0:00:07]} 43. Kf3 {[%clk 0:00:07]}  Ke5 {[%clk 0:00:08]} 44. Rxc6 {[%clk 0:00:07]}  Rb4 {[%clk 0:00:08]} 45. Ra6 {[%clk 0:00:05]}  a3 {[%clk 0:00:08]} 46. Rxa5 {[%clk 0:00:06]}  Rb3+ {[%clk 0:00:07]} 47. Kg4 {[%clk 0:00:06]}  Re3 {[%clk 0:00:05]} 48. Kg5 {[%clk 0:00:05]}  Re4 {[%clk 0:00:05]} 49. f6 {[%clk 0:00:05]}  Re3 {[%clk 0:00:04]} 50. f7 {[%clk 0:00:04]}  Rf3 {[%clk 0:00:05]} 51. Kg6 {[%clk 0:00:04]}  Rg3+ {[%clk 0:00:04]} 52. Kh6 {[%clk 0:00:03]}  Rf3 {[%clk 0:00:03]} 53. Kg7 {[%clk 0:00:04]}  Ke6 {[%clk 0:00:03]} 54. f8=Q {[%clk 0:00:04]}  Rxf8 {[%clk 0:00:02]} 55. Kxf8 {[%clk 0:00:04]}  Ke5 {[%clk 0:00:02]} 56. Rxa3 {[%clk 0:00:04]}  Kd4 {[%clk 0:00:00]} 57. Ke7 {[%clk 0:00:04]} 1-0


[Site "https://www.chess.com"]

[Event "Titled Tuesday Blitz July 18 Late 2023"]
[White "Burke, Paul"]
[Black "Todev, Simeon"]
[WhiteFideId "2605767"]
[BlackFideId "2925133"]
[WhiteElo "1978"]
[BlackElo "2409"]
[Result "1-0"]
[Round "2"]
[TimeControl "180+2"]
[Date "2023.07.18"]
[WhiteClock "0:00:56"]
[BlackClock "0:01:30"]
[Board "199"]

1. e4 {[%clk 0:03:00]}  c5 {[%clk 0:02:59]} 2. Nf3 {[%clk 0:02:58]}  Nc6 {[%clk 0:02:57]} 3. d4 {[%clk 0:02:58]}  cxd4 {[%clk 0:02:58]} 4. c3 {[%clk 0:02:58]}  e5 {[%clk 0:02:59]} 5. Bc4 {[%clk 0:02:56]}  d5 {[%clk 0:03:00]} 6. exd5 {[%clk 0:02:56]}  Na5 {[%clk 0:02:57]} 7. Nxe5 {[%clk 0:02:48]}  Nxc4 {[%clk 0:02:47]} 8. Nxc4 {[%clk 0:02:47]}  Qxd5 {[%clk 0:02:47]} 9. Ne3 {[%clk 0:02:38]}  Qc6 {[%clk 0:02:37]} 10. cxd4 {[%clk 0:02:35]}  Nf6 {[%clk 0:02:34]} 11. O-O {[%clk 0:02:28]}  Be6 {[%clk 0:02:34]} 12. Nc3 {[%clk 0:02:26]}  Rd8 {[%clk 0:02:31]} 13. d5 {[%clk 0:02:22]}  Nxd5 {[%clk 0:02:30]} 14. Ncxd5 {[%clk 0:02:18]}  Bxd5 {[%clk 0:02:31]} 15. Nxd5 {[%clk 0:02:16]}  Rxd5 {[%clk 0:02:32]} 16. Re1+ {[%clk 0:02:14]}  Be7 {[%clk 0:02:31]} 17. Qe2 {[%clk 0:02:14]}  Rd7 {[%clk 0:02:29]} 18. Bg5 {[%clk 0:02:08]}  f6 {[%clk 0:02:28]} 19. Rac1 {[%clk 0:02:04]}  Qd6 {[%clk 0:02:19]} 20. Rc8+ {[%clk 0:02:00]}  Rd8 {[%clk 0:02:18]} 21. Bf4 {[%clk 0:01:47]}  Qd7 {[%clk 0:02:11]} 22. Rc7 {[%clk 0:01:43]}  Qxc7 {[%clk 0:02:04]} 23. Bxc7 {[%clk 0:01:42]}  Rd7 {[%clk 0:02:05]} 24. Bd6 {[%clk 0:01:37]}  O-O {[%clk 0:01:49]} 25. Bxe7 {[%clk 0:01:35]}  Re8 {[%clk 0:01:47]} 26. Qc4+ {[%clk 0:01:33]}  Kh8 {[%clk 0:01:45]} 27. Qf7 {[%clk 0:01:23]}  Rc8 {[%clk 0:01:44]} 28. h4 {[%clk 0:01:10]}  h6 {[%clk 0:01:43]} 29. Qg6 {[%clk 0:01:03]}  Rd2 {[%clk 0:01:31]} 30. Bxf6 {[%clk 0:00:57]}  gxf6 {[%clk 0:01:31]} 31. Qxh6+ {[%clk 0:00:56]}  Kg8 {[%clk 0:01:30]} 32. Qxd2 {[%clk 0:00:56]} 1-0


[Site "https://www.chess.com"]

[Event "Titled Tuesday Blitz July 18 Late 2023"]
[White "Melikhov, Evgeny V."]
[Black "Sainz Aguirre, Ignacio"]
[WhiteFideId "4122046"]
[BlackFideId "5101727"]
[WhiteElo "2408"]
[BlackElo "1969"]
[Result "1-0"]
[Round "2"]
[TimeControl "180+2"]
[Date "2023.07.18"]
[WhiteClock "0:01:19"]
[BlackClock "0:00:00"]
[Board "200"]

1. d4 {[%clk 0:03:00]}  d5 {[%clk 0:02:59]} 2. c4 {[%clk 0:03:00]}  e6 {[%clk 0:02:59]} 3. Nc3 {[%clk 0:03:00]}  a6 {[%clk 0:02:59]} 4. cxd5 {[%clk 0:02:59]}  exd5 {[%clk 0:02:58]} 5. Nf3 {[%clk 0:02:59]}  Nf6 {[%clk 0:02:55]} 6. Bg5 {[%clk 0:02:59]}  Be6 {[%clk 0:02:55]} 7. e3 {[%clk 0:02:59]}  Bd6 {[%clk 0:02:52]} 8. Bd3 {[%clk 0:02:58]}  h6 {[%clk 0:02:52]} 9. Bh4 {[%clk 0:02:54]}  g5 {[%clk 0:02:44]} 10. Bg3 {[%clk 0:02:54]}  c6 {[%clk 0:02:38]} 11. Ne5 {[%clk 0:02:37]}  h5 {[%clk 0:02:28]} 12. f4 {[%clk 0:02:35]}  h4 {[%clk 0:02:14]} 13. Bf2 {[%clk 0:02:32]}  g4 {[%clk 0:02:02]} 14. Qc2 {[%clk 0:02:24]}  Bc8 {[%clk 0:01:16]} 15. O-O-O {[%clk 0:02:21]}  Nbd7 {[%clk 0:01:13]} 16. Kb1 {[%clk 0:02:20]}  Nf8 {[%clk 0:00:38]} 17. Rc1 {[%clk 0:02:16]}  Ne6 {[%clk 0:00:32]} 18. Ka1 {[%clk 0:02:00]}  Nc7 {[%clk 0:00:30]} 19. Na4 {[%clk 0:01:54]}  Ne6 {[%clk 0:00:20]} 20. a3 {[%clk 0:01:33]}  Bd7 {[%clk 0:00:00]} 21. Bg6 {[%clk 0:01:19]} 1-0


[Site "https://www.chess.com"]

[Event "Titled Tuesday Blitz July 18 Late 2023"]
[White "Luong Phuong Hanh"]
[Black "Dmitriev, Sergey"]
[WhiteFideId "12401013"]
[BlackFideId "14101785"]
[WhiteElo "2403"]
[BlackElo "1961"]
[Result "1-0"]
[Round "2"]
[TimeControl "180+2"]
[Date "2023.07.18"]
[WhiteClock "0:00:28"]
[BlackClock "0:00:17"]
[Board "201"]

1. d4 {[%clk 0:03:00]}  d6 {[%clk 0:02:59]} 2. Nf3 {[%clk 0:03:00]}  g6 {[%clk 0:02:57]} 3. g3 {[%clk 0:03:00]}  Bg7 {[%clk 0:02:57]} 4. Bg2 {[%clk 0:03:01]}  Nf6 {[%clk 0:02:57]} 5. O-O {[%clk 0:03:01]}  O-O {[%clk 0:02:57]} 6. a4 {[%clk 0:03:00]}  a5 {[%clk 0:02:53]} 7. Re1 {[%clk 0:02:59]}  Nc6 {[%clk 0:02:42]} 8. c3 {[%clk 0:02:56]}  Re8 {[%clk 0:02:18]} 9. e4 {[%clk 0:02:47]}  e5 {[%clk 0:02:16]} 10. dxe5 {[%clk 0:02:46]}  Nxe5 {[%clk 0:02:15]} 11. Nxe5 {[%clk 0:02:44]}  dxe5 {[%clk 0:02:14]} 12. Qc2 {[%clk 0:02:32]}  Be6 {[%clk 0:02:08]} 13. Be3 {[%clk 0:02:29]}  Qc8 {[%clk 0:01:54]} 14. Nd2 {[%clk 0:02:16]}  Bh3 {[%clk 0:01:52]} 15. Bh1 {[%clk 0:02:14]}  Ng4 {[%clk 0:01:49]} 16. Bc5 {[%clk 0:02:14]}  b6 {[%clk 0:01:44]} 17. Ba3 {[%clk 0:02:14]}  Qe6 {[%clk 0:01:35]} 18. Nf3 {[%clk 0:02:13]}  h6 {[%clk 0:01:34]} 19. Rad1 {[%clk 0:02:10]}  Rad8 {[%clk 0:01:30]} 20. Nh4 {[%clk 0:02:04]}  Bf6 {[%clk 0:01:10]} 21. Ng2 {[%clk 0:01:43]}  Rxd1 {[%clk 0:01:07]} 22. Rxd1 {[%clk 0:01:43]}  Rd8 {[%clk 0:01:07]} 23. Rxd8+ {[%clk 0:01:41]}  Bxd8 {[%clk 0:01:08]} 24. Ne1 {[%clk 0:01:37]}  Be7 {[%clk 0:01:01]} 25. Bxe7 {[%clk 0:01:36]}  Qxe7 {[%clk 0:01:02]} 26. Qd2 {[%clk 0:01:33]}  Qc5 {[%clk 0:00:57]} 27. Nd3 {[%clk 0:01:31]}  Qf8 {[%clk 0:00:54]} 28. Bf3 {[%clk 0:01:30]}  Nf6 {[%clk 0:00:54]} 29. Nxe5 {[%clk 0:01:30]}  Qe7 {[%clk 0:00:52]} 30. Qd4 {[%clk 0:01:27]}  c5 {[%clk 0:00:51]} 31. Nc6 {[%clk 0:01:24]}  Qe6 {[%clk 0:00:41]} 32. Qd8+ {[%clk 0:01:14]}  Kg7 {[%clk 0:00:40]} 33. e5 {[%clk 0:01:08]}  Nd5 {[%clk 0:00:34]} 34. Qxd5 {[%clk 0:01:08]}  Qf5 {[%clk 0:00:33]} 35. Qd1 {[%clk 0:01:01]}  g5 {[%clk 0:00:32]} 36. Bg2 {[%clk 0:00:59]}  Bg4 {[%clk 0:00:31]} 37. Qe1 {[%clk 0:00:53]}  Bf3 {[%clk 0:00:26]} 38. Bxf3 {[%clk 0:00:51]}  Qxf3 {[%clk 0:00:26]} 39. Na7 {[%clk 0:00:44]}  h5 {[%clk 0:00:25]} 40. Nb5 {[%clk 0:00:43]}  h4 {[%clk 0:00:25]} 41. e6 {[%clk 0:00:36]}  hxg3 {[%clk 0:00:24]} 42. Qe5+ {[%clk 0:00:35]}  Kg6 {[%clk 0:00:23]} 43. Qxg3 {[%clk 0:00:36]}  Qd1+ {[%clk 0:00:23]} 44. Kg2 {[%clk 0:00:37]}  Qd5+ {[%clk 0:00:23]} 45. Qf3 {[%clk 0:00:36]}  Qxe6 {[%clk 0:00:24]} 46. Nc7 {[%clk 0:00:35]}  Qe5 {[%clk 0:00:22]} 47. Nd5 {[%clk 0:00:33]}  f5 {[%clk 0:00:20]} 48. Nxb6 {[%clk 0:00:30]}  g4 {[%clk 0:00:20]} 49. Qc6+ {[%clk 0:00:29]}  Kg5 {[%clk 0:00:20]} 50. Qa8 {[%clk 0:00:23]}  Qf4 {[%clk 0:00:20]} 51. Qd8+ {[%clk 0:00:21]}  Kh6 {[%clk 0:00:19]} 52. Qf8+ {[%clk 0:00:21]}  Kh7 {[%clk 0:00:19]} 53. Qf7+ {[%clk 0:00:20]}  Kh6 {[%clk 0:00:19]} 54. Qe6+ {[%clk 0:00:20]}  Kh7 {[%clk 0:00:19]} 55. Qd7+ {[%clk 0:00:20]}  Kh6 {[%clk 0:00:19]} 56. Qc6+ {[%clk 0:00:20]}  Kh7 {[%clk 0:00:19]} 57. Nd7 {[%clk 0:00:20]}  Qf3+ {[%clk 0:00:18]} 58. Qxf3 {[%clk 0:00:19]}  gxf3+ {[%clk 0:00:18]} 59. Kxf3 {[%clk 0:00:20]}  Kg6 {[%clk 0:00:19]} 60. Nxc5 {[%clk 0:00:21]}  Kf6 {[%clk 0:00:19]} 61. Nb7 {[%clk 0:00:22]}  Ke5 {[%clk 0:00:19]} 62. Nxa5 {[%clk 0:00:23]}  Kd6 {[%clk 0:00:20]} 63. Nb3 {[%clk 0:00:23]}  Kd5 {[%clk 0:00:19]} 64. h4 {[%clk 0:00:24]}  Kc4 {[%clk 0:00:18]} 65. Na5+ {[%clk 0:00:24]}  Kc5 {[%clk 0:00:18]} 66. h5 {[%clk 0:00:25]}  Kd6 {[%clk 0:00:19]} 67. h6 {[%clk 0:00:26]}  Ke6 {[%clk 0:00:19]} 68. h7 {[%clk 0:00:27]}  Kf7 {[%clk 0:00:17]} 69. h8=Q {[%clk 0:00:28]} 1-0


[Site "https://www.chess.com"]

[Event "Titled Tuesday Blitz July 18 Late 2023"]
[White "cedchass2006"]
[Black "Lutz, Igor Oscar"]
[BlackFideId "2110806"]
[WhiteElo "2399"]
[BlackElo "1947"]
[Result "1-0"]
[Round "2"]
[TimeControl "180+2"]
[Date "2023.07.18"]
[WhiteClock "0:00:37"]
[BlackClock "0:00:04"]
[Board "202"]

1. e4 {[%clk 0:03:00]}  c5 {[%clk 0:03:00]} 2. Nf3 {[%clk 0:03:00]}  Nc6 {[%clk 0:02:59]} 3. Bb5 {[%clk 0:02:59]}  d6 {[%clk 0:02:54]} 4. O-O {[%clk 0:02:57]}  Bg4 {[%clk 0:02:48]} 5. Bxc6+ {[%clk 0:02:35]}  bxc6 {[%clk 0:02:48]} 6. d3 {[%clk 0:02:36]}  g6 {[%clk 0:02:39]} 7. h3 {[%clk 0:02:35]}  Bxf3 {[%clk 0:02:35]} 8. Qxf3 {[%clk 0:02:36]}  Bg7 {[%clk 0:02:35]} 9. Nc3 {[%clk 0:02:35]}  Qc7 {[%clk 0:02:15]} 10. Bf4 {[%clk 0:02:26]}  Rb8 {[%clk 0:02:08]} 11. Rab1 {[%clk 0:02:20]}  Nf6 {[%clk 0:02:04]} 12. Qe3 {[%clk 0:02:13]}  O-O {[%clk 0:01:59]} 13. Bh6 {[%clk 0:02:12]}  e5 {[%clk 0:01:40]} 14. Bxg7 {[%clk 0:02:11]}  Kxg7 {[%clk 0:01:41]} 15. f4 {[%clk 0:02:10]}  exf4 {[%clk 0:01:35]} 16. Qxf4 {[%clk 0:02:11]}  Nh5 {[%clk 0:01:34]} 17. Qh4 {[%clk 0:02:08]}  Qd8 {[%clk 0:01:06]} 18. Qf2 {[%clk 0:02:06]}  Qg5 {[%clk 0:01:01]} 19. Ne2 {[%clk 0:01:48]}  Qd2 {[%clk 0:00:53]} 20. g4 {[%clk 0:01:37]}  Qg5 {[%clk 0:00:43]} 21. Kh1 {[%clk 0:01:36]}  Nf6 {[%clk 0:00:07]} 22. Ng1 {[%clk 0:01:10]}  Nd7 {[%clk 0:00:06]} 23. Nf3 {[%clk 0:01:03]}  Qf6 {[%clk 0:00:06]} 24. b3 {[%clk 0:00:57]}  Ne5 {[%clk 0:00:06]} 25. Qg3 {[%clk 0:00:54]}  Nxf3 {[%clk 0:00:06]} 26. Rxf3 {[%clk 0:00:55]}  Qe5 {[%clk 0:00:06]} 27. Qxe5+ {[%clk 0:00:52]}  dxe5 {[%clk 0:00:07]} 28. Rbf1 {[%clk 0:00:51]}  f6 {[%clk 0:00:07]} 29. Kg2 {[%clk 0:00:51]}  Rf7 {[%clk 0:00:08]} 30. a4 {[%clk 0:00:51]}  Rbf8 {[%clk 0:00:09]} 31. Kg3 {[%clk 0:00:50]}  f5 {[%clk 0:00:09]} 32. exf5 {[%clk 0:00:50]}  gxf5 {[%clk 0:00:10]} 33. Rxf5 {[%clk 0:00:50]}  Rxf5 {[%clk 0:00:10]} 34. Rxf5 {[%clk 0:00:50]}  Rxf5 {[%clk 0:00:11]} 35. gxf5 {[%clk 0:00:51]}  Kf6 {[%clk 0:00:12]} 36. Kg4 {[%clk 0:00:51]}  h5+ {[%clk 0:00:12]} 37. Kxh5 {[%clk 0:00:48]}  Kxf5 {[%clk 0:00:13]} 38. h4 {[%clk 0:00:44]}  a6 {[%clk 0:00:09]} 39. Kh6 {[%clk 0:00:41]}  Kf6 {[%clk 0:00:10]} 40. h5 {[%clk 0:00:40]}  a5 {[%clk 0:00:09]} 41. Kh7 {[%clk 0:00:38]}  Kf7 {[%clk 0:00:09]} 42. h6 {[%clk 0:00:38]}  c4 {[%clk 0:00:04]} 43. bxc4 {[%clk 0:00:37]}  c5 {[%clk 0:00:04]} 44. c3 {[%clk 0:00:36]}  Kf6 {[%clk 0:00:01]} 45. Kg8 {[%clk 0:00:36]}  Kf5 {[%clk 0:00:02]} 46. h7 {[%clk 0:00:37]}  Kf4 {[%clk 0:00:03]} 47. h8=Q {[%clk 0:00:37]}  Ke3 {[%clk 0:00:04]} 48. Qxe5+ {[%clk 0:00:36]}  Kxd3 {[%clk 0:00:05]} 49. Qxc5 {[%clk 0:00:37]}  Kxc3 {[%clk 0:00:04]} 50. Qxa5+ {[%clk 0:00:37]} 1-0


[Site "https://www.chess.com"]